Cogmind - Beta 13 @@@ ROGUE MODE // 2024.06.13 @ 13:13:58 Player: QXander Result: Destroyed by B-75 Beast with Magnetic Acceleration Cannon Performance ------------- Evolutions (1) 500 Regions Visited (5) 1000 Robots Destroyed (22) 110 Value Destroyed (630) 630 Prototype IDs (2) 40 Alien Tech Used (0) 0 Bonus (1046) 1046 TOTAL SCORE: 3326 Bonus ------- Follower Combat Kills 446 Met Imprinter 300 Was Imprinted 300 Cogmind --------- Core Integrity 0/400 Matter 280/300 Energy 153/290 System Corruption 0% Temperature Cool (13) Movement Treading (170) Location -6/Proximity Caves Parts ------- > --- POWER (2) -------- Improved Deuterium Engine > --- PROPULSION (3) --- Armored Treads VTOL Module > --- UTILITY (2) ------ Makeshift Hacking Suite Hacking Drone Bay (0/1) > --- WEAPON (2) ------- CR-A16's Pointy Stick > --- INVENTORY (5) ---- Kinecellerator Authchip [Armor] Peak State ------------ > --- POWER ------------ Improved Ion Engine Makeshift Power Source > --- PROPULSION ------- Carbon-fiber Leg Makeshift Leg Myomer Leg > --- UTILITY ---------- Improved Signal Interpreter Makeshift Hacking Suite > --- WEAPON ----------- Makeshift Axe CR-A16's Pointy Stick > --- INVENTORY -------- Kinecellerator Medium Armor Plating Hacking Drone Bay Self-destruct Interrupter [Rating: 37] Favorites ----------- Power Improved Ion Engine Engine Improved Ion Engine Power Core Micro Nuclear Core Propulsion Hover Unit Treads Improved Treads Leg Makeshift Leg Wheel Armored Wheel Hover Unit Hover Unit Flight Unit VTOL Module Utility Improved Signal Interpreter Device Sensor Array Storage Small Storage Unit Processor Improved Signal Interpreter Hackware Makeshift Hacking Suite Protection Improved Medium Armor Plating Weapon Minigun Energy Gun EM Pulse Gun Ballistic Gun Minigun Launcher EMP Blaster Slashing Weapon Makeshift Axe Piercing Weapon CR-A16's Pointy Stick Build | -11 -10 -9 -9 -7 -6 ------- Run | Yrd Mat Mat Min Zio Pro Slots Evolved 2 | . . 2 . . . Power 1 | . . 1 . . . Propulsion 1 | . . 1 . . . Utility . | . . . . . . Weapon . | . . . . . . Parts Attached 65 | 6 5 26 6 14 8 Power 13 | 1 1 7 2 1 1 Engine 12 | 1 1 7 1 1 1 Core 1 | . . . 1 . . Reactor . | . . . . . . Propulsion 21 | 2 2 8 . 6 3 Treads 2 | . . 1 . . 1 Leg 7 | 2 . 1 . 3 1 Wheel 4 | . 2 2 . . . Hover 6 | . . 4 . 2 . Flight 2 | . . . . 1 1 Utility 14 | 1 2 2 4 3 2 Device 6 | . . 1 3 1 1 Storage 1 | 1 . . . . . Processor 3 | . 2 1 . . . Hackware 1 | . . . . 1 . Protection 3 | . . . 1 1 1 Artifact . | . . . . . . Weapon 17 | 2 . 9 . 4 2 Energy Gun 8 | 1 . 5 . 1 1 Energy Cannon . | . . . . . . Ballistic Gun 4 | 1 . 2 . . 1 Ballistic Cannon . | . . . . . . Launcher 2 | . . 2 . . . Special Weapon . | . . . . . . Impact Weapon . | . . . . . . Slashing Weapon 2 | . . . . 2 . Piercing Weapon 1 | . . . . 1 . Special Melee Weapon . | . . . . . . Unidentified Prototypes 2 | . . 1 . . 1 Parts Lost 18 | . . 11 . . 7 Power 6 | . . 4 . . 2 Propulsion 6 | . . 3 . . 3 Utility 2 | . . 1 . . 1 Weapon 4 | . . 3 . . 1 Highest Loss Streak 9 | . . 9 . . 7 To Critical Strikes 1 | . . 1 . . . Average Slot Usage (%) 89 | . 90 74 69 97 82 Engine 17 | . 14 11 10 21 16 Leg 11 | . 3 5 . 11 24 Wheel 3 | . 23 10 . . . Hover 12 | . . 2 24 20 . Device 6 | . . 9 7 8 1 Storage 1 | . 14 1 . . . Processor 9 | . 6 10 11 11 6 Hackware 3 | . . . . 2 11 Energy Gun 2 | . 14 1 2 1 1 Ballistic Gun 10 | . 14 17 11 9 5 Slashing Weapon 4 | . . . . 8 . Piercing Weapon 3 | . . . . 2 11 Naked Turns . | . . . . . . Heaviest Build 24 | 12 12 15 20 21 24 Greatest Support 60 | 20 24 36 18 45 60 Greatest Overweight (x) 5 | . . 3 1 3 5 Average Overweight (x) . | . . . . . . Largest Inventory Capacity 8 | 8 8 8 5 5 5 Average Capacity 5 | 7 8 5 5 5 5 Most Carried 8 | 4 8 6 5 5 5 Average Carried 3 | 2 5 3 3 4 3 Final Capacity 8 | 8 8 5 5 5 5 Final Carried 7 | 4 7 4 2 4 2 Class Distribution -------------------- 48% | Scavenger-Mutant 39% | Mutant 11% | Derelict-Mutant Dominant Class ---------------- Mutant | -10/Materials Mutant | -9/Materials Mutant | -9/Mines Scavenger-Mutant | -7/Zion Scavenger-Mutant | -6/Proximity Caves Resources | -11 -10 -9 -9 -7 -6 ----------- Run | Yrd Mat Mat Min Zio Pro Matter Collected 1227 | 237 86 578 . 158 168 Remotely . | . . . . . . Salvage Created 897 | . 149 506 . . 242 Parts 50 | . 11 33 . . 6 Haulers Intercepted 1 | . 1 . . . . Recyclers Shooed . | . . . . . . Parts Field Recycled . | . . . . . . Retrieved Matter . | . . . . . . Parts Self-Destructed 10 | . . . . . 10 Prevented 15 | . . . . 1 14 Kills | -11 -10 -9 -9 -7 -6 ------- Run | Yrd Mat Mat Min Zio Pro Combat Hostiles Destroyed 16 | . 2 12 . . 2 Melee 1 | . . . . . 1 Guns 10 | . 1 8 . . 1 AOE 5 | . 1 4 . . . Classes Destroyed 8 | . 3 4 . . 1 Hauler 1 | . 1 . . . . Recycler 1 | . . 1 . . . Watcher 4 | . 2 2 . . . Swarmer 4 | . . 4 . . . Grunt 8 | . 2 4 . . 2 Brawler 1 | . . 1 . . . Sentry 3 | . . 3 . . . Samaritan 3 | . . . . . 3 Best Kill Streak 4 | . 2 4 . . 1 Combat Bots Only 4 | . 1 4 . . 1 Max Kills in Single Turn 3 | . 2 3 . . 1 Gunslinging . | . . . . . . Exploded 3 | . 1 3 . . . Melee 1 | . . . . . 1 Uniques/NPCs Destroyed . | . . . . . . Combat | -11 -10 -9 -9 -7 -6 -------- Run | Yrd Mat Mat Min Zio Pro Hostile Shots Fired 239 | . 21 115 . . 103 Missed 69 | . 3 17 . . 49 Damage Taken 2505 | . 224 1338 17 . 926 Core 448 | . 44 300 . . 104 Absorbed by Shields . | . . . . . . Regen/Repaired (Parts) 12 | . . 12 . . . Core Remaining (%) 91 | 100 82 . . . . Volleys Fired 78 | . 18 48 . . 12 Largest 2 | . 2 2 . . 1 Hottest 90 | . 60 90 . . 50 Shots Fired 133 | . 36 85 . . 12 Gun 126 | . 36 78 . . 12 Cannon . | . . . . . . Launcher 7 | . . 7 . . . Special . | . . . . . . Kinetic 86 | . 18 59 . . 9 Thermal 18 | . . 18 . . . Explosive 1 | . . 1 . . . Electromagnetic 28 | . 18 7 . . 3 Robot Hit Streak 10 | . 4 10 . . 9 Robot Miss Streak 4 | . 4 2 . . 2 Penetration Max . | . . . . . . Secondary Targets 1 | . . 1 . . . Max Gunslinging Chain 1 | . . 1 . . . Shots Hit Robots 84 | . 16 53 . . 15 Core Hits 40 | . 8 23 . . 9 Critical Kills . | . . . . . . Critical Parts Destroyed . | . . . . . . Critical Strikes . | . . . . . . Melee Attacks 6 | . . . . . 6 Impact . | . . . . . . Slashing . | . . . . . . Piercing 6 | . . . . . 6 Sneak Attacks 5 | . . . . . 5 Combat Hostiles . | . . . . . . Follow-up Attacks . | . . . . . . Damage Inflicted 1977 | . 487 978 . . 512 Guns 1162 | . 233 784 . . 145 Cannons . | . . . . . . Explosions 436 | . 254 182 . . . Melee 367 | . . . . . 367 Ramming 12 | . . 12 . . . Kinetic 815 | . 125 599 . . 91 Thermal 429 | . 254 175 . . . Explosive 101 | . . 101 . . . Electromagnetic 253 | . 108 91 . . 54 Impact . | . . . . . . Slashing . | . . . . . . Piercing 367 | . . . . . 367 Highest Corruption 14 | . . 13 14 9 . Average Corruption 11 | . . 12 11 9 . Corruption Purged 5 | . . . 5 . . Corruption Blocked . | . . . . . . Effects 52 | . . 40 6 6 . Message Errors 15 | . . 11 1 3 . Matter Fused 11 | . . 7 3 1 . Heat Flow Errors 4 | . . 4 . . . Energy Discharges 7 | . . 6 . 1 . Parts Rejected 1 | . . 1 . . . Parts Fused 2 | . . 1 1 . . Data Loss (minor) 4 | . . 3 1 . . Data Loss (major) 3 | . . 3 . . . Misfires 1 | . . 1 . . . Alerts 3 | . . 2 . 1 . Misdirections 1 | . . 1 . . . Overload Shots . | . . . . . . Overflow Damage 95 | . 3 . . . 92 Projectiles . | . . . . . . Explosions 3 | . 3 . . . . Melee 92 | . . . . . 92 Knockbacks . | . . . . . . Impact . | . . . . . . Kinetic . | . . . . . . Secondary . | . . . . . . Self-Inflicted Damage 71 | . 25 46 . . . Shots 5 | . 1 4 . . . Rammed 1 | . . 1 . . . Targets Rammed 2 | . 1 1 . . . Kicked 1 | . 1 . . . . Crushed . | . . . . . . Highest Temperature 472 | . 48 472 . . 100 Average Temperature 78 | . 20 103 . . 31 Received Heat Transfer 1005 | . 123 633 . . 249 Effects 6 | . . 6 . . . Energy Bleed 1 | . . 1 . . . Interference 3 | . . 3 . . . Matter Decay 1 | . . 1 . . . Short Circuit 1 | . . 1 . . . Siege Activations . | . . . . . . Robots Corrupted . | . . . . . . Combat Hostiles . | . . . . . . Parts Fried 1 | . . 1 . . . Impact Corruptions . | . . . . . . Robots Melted . | . . . . . . Combat Hostiles . | . . . . . . Parts Melted 2 | . 2 . . . . Heat Transferred 768 | . 250 518 . . . Parts Sabotaged . | . . . . . . Parts Stolen . | . . . . . . Parts Stripped . | . . . . . . Power Chain Reactions 3 | . 2 1 . . . Alert | -11 -10 -9 -9 -7 -6 ------- Run | Yrd Mat Mat Min Zio Pro Peak Influence 170 | . 159 170 25 . . Initial 66 | . . 66 25 . . Average 61 | . 88 71 25 . . Maximum Alert Level . | . . . . . . Low Security (%) 100 | 100 100 100 100 . . Level 1 . | . . . . . . Level 2 . | . . . . . . Level 3 . | . . . . . . Level 4 . | . . . . . . Level 5 . | . . . . . . High Security . | . . . . . . Max Security . | . . . . . . Squads Dispatched 3 | . 2 . . . 1 Investigation . | . . . . . . Extermination . | . . . . . . Reinforcement 2 | . 2 . . . . Assault 1 | . . . . . 1 Garrison . | . . . . . . Intercept . | . . . . . . Searches Triggered . | . . . . . . Construction Impeded . | . . . . . . Haulers Reinforced . | . . . . . . Active Scanning Responses . | . . . . . . Cargo Convoy Interrupts . | . . . . . . Stealth | -11 -10 -9 -9 -7 -6 --------- Run | Yrd Mat Mat Min Zio Pro Distress Signals . | . . . . . . Communications Jammed . | . . . . . . Distress Signals . | . . . . . . Times Spotted 42 | . 9 14 . 1 18 Peak Tracking Total 6 | . 3 5 . 1 6 Tactical Retreats 2 | . . . . . 2 Traps | -11 -10 -9 -9 -7 -6 ------- Run | Yrd Mat Mat Min Zio Pro Traps Triggered 3 | . . . 3 . . Indirectly . | . . . . . . Trap Hack Attempts . | . . . . . . Triggered . | . . . . . . Disarmed . | . . . . . . Reprogrammed . | . . . . . . Reused . | . . . . . . Traps Extracted . | . . . . . . Installed . | . . . . . . Triggered 2 | . . . . . 2 Machines | -11 -10 -9 -9 -7 -6 ---------- Run | Yrd Mat Mat Min Zio Pro Machines Disabled 3 | . 2 1 . . . Max in Single Turn 2 | . 2 1 . . . Machines Repaired . | . . . . . . Machines Dismantled . | . . . . . . Machines Sabotaged . | . . . . . . Overloaded Fab Kills . | . . . . . . Hacking | -11 -10 -9 -9 -7 -6 --------- Run | Yrd Mat Mat Min Zio Pro Machines Accessed 9 | . 1 7 1 . . Terminals 6 | . 1 5 . . . Fabricators . | . . . . . . Repair Stations 1 | . . 1 . . . Recycling Units 1 | . . 1 . . . Scanalyzers . | . . . . . . Garrison Access . | . . . . . . Total Hacks 25 | . 4 20 1 . . Successful 13 | . 3 9 1 . . Failed 12 | . 1 11 . . . Catastrophic 2 | . . 2 . . . Database Lockouts . | . . . . . . Manual . | . . . . . . Terminals 16 | . 4 12 . . . Fabricators . | . . . . . . Repair Stations 2 | . . 2 . . . Recycling Units 6 | . . 6 . . . Scanalyzers . | . . . . . . Garrison Access . | . . . . . . Terminal Hacks 8 | . 3 4 1 . . Record 2 | . . 2 . . . Open Door 1 | . . . 1 . . Alert Level 1 | . 1 . . . . Locate Traps 2 | . 1 1 . . . Zone Layout 2 | . 1 1 . . . Fabricator Hacks . | . . . . . . Repair Station Hacks 2 | . . 2 . . . Scan Component 1 | . . 1 . . . Repair 1 | . . 1 . . . Recycling Unit Hacks 3 | . . 3 . . . Process 1 | . . 1 . . . Report Inventory 1 | . . 1 . . . Retrieve Matter 1 | . . 1 . . . Scanalyzer . | . . . . . . Garrison Access Hacks . | . . . . . . Unauthorized Hacks . | . . . . . . Terminals . | . . . . . . Fabricators . | . . . . . . Repair Stations . | . . . . . . Recycling Units . | . . . . . . Scanalyzers . | . . . . . . Garrison Access . | . . . . . . Data Cores Recovered . | . . . . . . Used . | . . . . . . Hacking Detections 6 | . 1 5 . . . Full Trace Events 1 | . . 1 . . . Feedback Events . | . . . . . . Feedback Blocked . | . . . . . . Robot Schematics Acquired 1 | . . . . 1 . Robots Built . | . . . . . . Authchips . | . . . . . . Time . | . . . . . . Total Robot Build Rating . | . . . . . . Part Schematics Acquired 2 | . . . . 2 . Parts Built . | . . . . . . Authchips . | . . . . . . Time . | . . . . . . Total Part Build Rating . | . . . . . . Parts Repaired 1 | . . 1 . . . Time 26 | . . 26 . . . Parts Recycled . | . . . . . . Recycled Matter 32 | . . 32 . . . Retrieved Matter 32 | . . 32 . . . Retrieved Components . | . . . . . . Parts Scanalyzed . | . . . . . . Part Schematics Acquired . | . . . . . . Parts Damaged . | . . . . . . Bothacking | -11 -10 -9 -9 -7 -6 ------------ Run | Yrd Mat Mat Min Zio Pro Used RIF Installer . | . . . . . . Robots Hacked . | . . . . . . Non-combat . | . . . . . . Combat . | . . . . . . Robot Hacks Applied . | . . . . . . Relay Couplers Released . | . . . . . . Fabnet Peak Effective % . | . . . . . . Robots Rewired . | . . . . . . Allies Hacked . | . . . . . . Hacks Repelled . | . . . . . . Allies | -11 -10 -9 -9 -7 -6 -------- Run | Yrd Mat Mat Min Zio Pro Total Allies 4 | . . . . 4 . Largest Group 4 | . . . . 4 4 Highest-Rated Group 154 | . . . . 154 154 Highest-Rated Ally 39 | . . . . 39 39 Total Orders . | . . . . . . Ally Attacks 67 | . . . . 3 64 Total Damage 1677 | . . . . 109 1568 Kills 13 | . . . . 1 12 Allies Corrupted . | . . . . . . Allies Melted 1 | . . . . . 1 Intel | -11 -10 -9 -9 -7 -6 ------- Run | Yrd Mat Mat Min Zio Pro Robot Analysis Total . | . . . . . . Derelict Logs Recovered 5 | . . . 2 1 2 Drone Launches 1 | . . . . . 1 Drone Recoveries . | . . . . . . Exploration | -11 -10 -9 -9 -7 -6 ------------- Run | Yrd Mat Mat Min Zio Pro Turns Passed 4840 | 186 268 977 143 2480 786 Spaces Moved 3550 | 159 207 692 203 1449 840 Core 289 | 28 . 121 . 17 123 Treads 158 | . . 154 . . 4 Legs 1962 | 131 20 . . 1374 437 Wheels 470 | . 187 283 . . . Hover 395 | . . 134 203 58 . Flight 276 | . . . . . 276 Fastest Speed 35 | 50 90 52 52 56 35 Average Speed 113 | 107 92 114 62 138 86 Slowest Speed 300 | 120 120 200 116 210 300 Overloaded Moves . | . . . . . . Propulsion Burnouts . | . . . . . . Robots Hopped . | . . . . . . Cave-ins Triggered . | . . . . . . Exploration Rate (%) 46 | 6 33 39 55 82 61 Regions Visited 5 Branch Regions 3 Pre-discovered Areas 6 | . . . 2 3 1 Known Exits Taken 3 | . . 1 1 1 . Unknown Exits Taken 2 | 1 1 . . . . Scrap Searched 4 | . . . . 3 1 Spaces Dug . | . . . . . . Terrain Destroyed 30 | . 25 5 . . . Melee . | . . . . . . Projectile . | . . . . . . AOE 30 | . 25 5 . . . Terrain Rammed . | . . . . . . Walls Destroyed . | . . . . . . Machines Disabled . | . . . . . . Actions | -11 -10 -9 -9 -7 -6 --------- Run | Yrd Mat Mat Min Zio Pro Total 4274 | 174 250 809 223 1933 885 Wait 430 | . . . . 430 . Move 3545 | 158 206 691 202 1448 840 Hop . | . . . . . . Pick Up 80 | 10 11 23 6 20 10 Fast Attach . | . . . . . . Attach 63 | 6 5 25 6 13 8 Detach 23 | . 3 8 3 6 3 Swap 2 | . . 1 . 1 . Drop 45 | . 6 12 6 15 6 Fire 78 | . 18 48 . . 12 Melee 6 | . . . . . 6 Ram 1 | . . 1 . . . Kick 1 | . 1 . . . . Crush . | . . . . . . Escape Stasis . | . . . . . . Rewire . | . . . . . . Trap . | . . . . . . Miscellaneous . | . . . . . . Route ------- -11/Scrapyard -10/Materials -9/Materials (discovered 2 exits: *Mat / *Min) -9/Mines -7/Zion -6/Proximity Caves History --------- Turn | Location | Event 12 | -11/Scrapyard | Discovered new exit (range 16) 187 | -11/Scrapyard | Entered Materials 315 | -10/Materials | Build established: Mutant 379 | -10/Materials | Discovered new exit (range 18) 455 | -10/Materials | Entered another Materials area 455 | -9/Materials | Evolved 2 slots: Power x1, Propulsion x1 520 | -9/Materials | Discovered new exit (range 11) 540 | -9/Materials | System corruption reached 10% 586 | -9/Materials | Core integrity fell below 50% 613 | -9/Materials | Lost 9 parts (2p3n1u3w) 709 | -9/Materials | Discovered new exit (range 14) 735 | -9/Materials | Identified exit to Materials 1170 | -9/Materials | Repaired Lgt. Ion Engine 1399 | -9/Materials | Identified exit to Mines 1432 | -9/Materials | Entered Mines 1456 | -9/Mines | Met a Derelict who couldn't figure out how to use a Trap Extractor 1543 | -9/Mines | Learned location of Zion (-7) 1569 | -9/Mines | A Derelict revealed a hidden shortcut to a safe place 1575 | -9/Mines | Identified exit to Zion 1575 | -9/Mines | Entered Zion 1586 | -7/Zion | Learned Factory security intel 1732 | -7/Zion | System corruption cleaned by Quarantine Array 1808 | -7/Zion | Build established: Scavenger-Mutant 1870 | -7/Zion | Learned location of Quarantine (-2) 2077 | -7/Zion | Given the Hacking Drone Bay 2077 | -7/Zion | Found Prototype Device 2935 | -7/Zion | Imprinted 2937 | -7/Zion | Declared Zion's savior 3340 | -7/Zion | Given A8's code to call for help 3374 | -7/Zion | Learned location of Data Miner (-6) 3484 | -7/Zion | Found CR-A16's Pointy Stick 3558 | -7/Zion | Acquired unknown access codes intercepted by a Zionite 3958 | -7/Zion | Build established: Derelict-Mutant 4015 | -7/Zion | Discovered new exit (range 15) 4052 | -7/Zion | Identified exit to Proximity Caves 4055 | -7/Zion | Entered Proximity Caves 4055 | -6/Proximity Caves | Accompanied by 4 allies 4456 | -6/Proximity Caves | Attracted the attention of an 0b10 outpost 4464 | -6/Proximity Caves | Core integrity fell below 20% 4493 | -6/Proximity Caves | Build established: Scavenger-Mutant 4569 | -6/Proximity Caves | Learned location of Extension (-6) 4622 | -6/Proximity Caves | Spotted B-75 Beast 4623 | -6/Proximity Caves | Entered a huge 0b10 base via the front door 4667 | -6/Proximity Caves | Lost 3 allies 4686 | -6/Proximity Caves | Lost 7 parts (2p3n1u1w) 4763 | -6/Proximity Caves | Identified Hacking Drone Bay 4817 | -6/Proximity Caves | Learned 4 Factory zone layouts 4841 | -6/Proximity Caves | Destroyed by B-75 Beast with Magnetic Acceleration Cannon Last Messages --------------- Acquired Imp. Deuterium Engine. Self-destruct Interrupter emitting active interruption sequence. Sneak attack on VR-82D(S). Destroyed Neutrino Core. Destroyed Med. Treads. Sneak attack on VR-82D(S). VR-82D(S) destroyed. Acquired 10 matter. Self-destruct Interrupter emitting active interruption sequence. Identified Hacking Drone Bay. Hacking Drone released from Hacking Drone Bay. You have a new controllable ally. Review and give out orders from the Allies menu (F5). Acquired derelict log, extracted data. Data stored: Factory zone layouts (x4). Acquired 3 matter. Acquired 7 matter. Acquired Arm. Treads. Map ----- +----------------------------------------------------+ | #????????????## #?????????????????????????? | | #######???????# #?????????????????????????? | | #?????## ##????????????????????????? | | ## #??????## #????????????????????????? | | ??# ####???????## ######????????????????????? | | ??# ##???????????## #### #????????????????????? | | ??# #????????????## ### #????????????????????? | | ??# #???????????## ## #????????????????????? | | ??# ############# #????????????????????? | | ??# ## #????????????????????? | | #?# ### ##????????????????????? | | ### ######## #?????????????????????? | | ##?????# ## #?????????????????????? | | ####### ### ###?????????????????????? | | ### ## #?# #???????????? ??????????? | | ##?#### ### #??????????? ???????????? | | ##?????# ###; ## #?????????? #???????????? | | ####??????# #?## ##??????#### #####???????? | | #?????????# #?## ###????? #???????? | | ??????????# ### ;##??? ##??????? | | ???###????# ### ##%n ####% % #??????? | | ???# #???# #?######;; % *+ #???????? | | ???# ###?# ##?????###; %+ #???????? | | ???# #?# ##????####*! %; #???????? | | ????# #?# ###### % %BB ????? | | ?????# ### @ !BB ????? | | # #### ## # % #### ###?????? | | ### ###### #?? #???????? | | ### ####### #?? #???????? | | #### "#?### #??#### #####???????? | | ???## #???####?????? #???????????? | | #????## %%=#??????????????##???????????? | | ##????# ##""%!#???????????????????????????? | | ####### ### #!%##??????????????????????????? | | #?## #?###%[ ##?????????????????????????? | | #??## #?## #?????????????????????????? | | #???## #### #?????????????????????????? | | ##???##### #?????????????????????????? | | #??????# [ #???###???????????????????? | | #?##???# %! ##?## #???????????????????? | | #??# ##??# * ### ##??########????????? | | #??# ##?## ## ### #????????? | | " #### ##?### ?????????? | | " # #???# ??????????? | | " #???# ???????????? | | "" #???## ## #?? #????????????? | | "" ##????# ## ### #?????????????? | | "" #?????# #??????????????? | | " #???#?# #""= "## #??????????????? | | ## ### # ! % "# #??????????????? | +----------------------------------------------------+ Best States ------------- Heat Dissipation 28 Energy Generation 22 Energy Capacity 335 Matter Stores 300 Matter Capacity 300 Sight Range 18 Robot Scan Range 14 Terrain Scan Density 10 Armor Coverage 225 Evasion (%) 63 Targeting Accuracy 5 Recoil Reduction 5 Kinecelleration 30 Offensive Hacking 11 Authchip Count 1 Item Schematics ----------------- Flak Gun | -7/Zion | Archive Thermal Shield | -7/Zion | Archive Robot Schematics ------------------ M-14 Sweeper | -7/Zion | Archive Fabricated ------------ Nothing Alien Tech Used ----------------- None Achievements -------------- Loot Pinata Robot Respite System Compromised The One Tourist Challenges ------------ None Game ------ Seed DispersionCoolantPurifier Manual? 0 Play Time 01:02:16 Cumulative 3.3 hours Start 2024.06.13 @ 12:06:06 End 2024.06.13 @ 13:13:58 Sessions 5 Manual Loads 0 Difficulty Rogue Special Mode None Game No. 4 Rogue 4 Adventurer 0 Explorer 0 Win Type - Total 0 Types 0/0/0/0/0/0/0/0/0 Lore% 4 Gallery% 9 Achievement% 7 Wizard Run 0 Options --------- Layout 1 ASCII 0 Keyboard 1 Movement Arrows Keybinds 0 Fullscreen 1 Font 24/Smallcaps Map View 50x35 Zoom Use 0% Tactical HUD 0 Map Filters NONE Filters NONE Steam 1 RUN: 14731aab-5bf2-45c4-87b5-01b3d549cc83